bitfinex-derivatives/quotes_SOLF0:USTF0_20250509
["timestamp","ask_amount","ask_price","bid_price","bid_amount"]
[1746775331877,41.3,165.2,165.12,2.0277]
[1746775332176,47.3535,165.2,165.14,6.0554]
[1746775332479,43.3535,165.2,165.08,1.9499]
[1746775332775,45.2566,165.2,165.08,1.9499]
[1746775332977,43.3535,165.2,165.1,15.53508906]
[1746775333271,41.3,165.2,165.19,6.0539]
[1746775333479,41.3,165.2,165.1,15.53508906]
[1746775334476,81.66,165.24,165.1,15.53508906]
[1746775334974,81.66,165.24,165.17,6.0546]
[1746775335174,81.66,165.24,165.1,15.53508906]
[1746775335476,81.66,165.24,165.14,6.0554]
[1746775335676,97.19508906,165.24,165.09,40.8]
[1746775335975,6.0541,165.19,165.15,6.0553]
[1746775336177,40.84,165.18,165.15,6.0553]
[1746775336676,40.84,165.18,165.14,6.0556]
[1746775337072,40.84,165.18,165.09,40.8]
[1746775338077,40.84,165.18,165.15,6.0551]
[1746775338476,40.84,165.18,165.09,40.8]
[1746775340179,40.84,165.18,165.17,6.0546]
[1746775341570,40.84,165.22,165.12,15.53508906]
[1746775341969,40.84,165.26,165.13,40.84]
[1746775342176,40.84,165.26,165.14,1.9959]
[1746775342377,40.84,165.26,165.15,40.72]
[1746775342572,46.8914,165.26,165.21,6.0529]
[1746775342873,40.84,165.26,165.15,40.72]
[1746775343072,40.84,165.26,165.16,1.888]
[1746775344372,40.84,165.26,165.18,6.0542]
[1746775344676,40.84,165.26,165.14,1.9959]
[1746775345481,6.0518,165.25,165.2,6.0534]
[1746775345683,40.84,165.26,165.14,1.9959]
[1746775346176,46.8913,165.26,165.21,6.0529]
[1746775346376,40.84,165.26,165.14,1.9959]
[1746775347584,40.84,165.26,165.15,15.53508906]
[1746775347775,40.84,165.26,165.15,9.49745675]
[1746775347972,40.84,165.26,165.24,6.052]
[1746775348177,40.84,165.26,165.15,9.49745675]
[1746775349180,40.84,165.26,165.25,6.0517]
[1746775349782,40.84,165.26,165.14,14.1072]
[1746775350177,40.84,165.26,165.22,6.0525]
[1746775350379,40.84,165.26,165.14,14.1072]
[1746775350580,6.052,165.25,165.14,1.9959]
[1746775350780,40.84,165.26,165.14,1.9959]
[1746775352485,40.84,165.26,165.23,6.0522]
[1746775353190,40.84,165.26,165.14,1.9959]
[1746775353583,6.0519,165.25,165.2,6.0532]
[1746775353787,40.84,165.26,165.11,42.8343]
[1746775353985,2.0603,165.24,165.15,6.0551]
[1746775354182,42.5615,165.23,165.11,1.9943]
[1746775354687,42.5615,165.23,165.16,6.0548]
[1746775355186,42.5615,165.23,165.16,3.7137]
[1746775355187,6.0533,165.21,165.16,3.7137]
[1746775355386,40.84,165.2,165.16,3.7137]
[1746775355687,40.84,165.2,165.07,44.9537]
[1746775356291,6.0541,165.19,165.07,44.9537]
[1746775358187,6.0543,165.18,165.07,44.9537]
[1746775358488,40.52,165.17,165.07,4.1137]
[1746775358788,40.52,165.17,165.13,6.0558]
[1746775359186,40.52,165.17,165.07,4.1137]
[1746775359385,46.5749,165.17,165.12,6.0563]
[1746775359687,40.52,165.17,165.07,4.1137]
[1746775360990,46.5749,165.17,165.07,4.1137]
[1746775361191,40.52,165.17,165.07,4.1137]
[1746775361490,6.0552,165.16,165.11,6.0566]
[1746775361893,40.52,165.17,165.07,4.1137]
[1746775362082,46.5747,165.17,165.12,6.0562]
[1746775363092,319.105,165.21,165.07,4.1137]
[1746775363391,80.92,165.18,165.07,4.1137]
[1746775363688,80.9,165.18,165.07,4.1137]
[1746775364291,80.9,165.18,165.08,9.49745675]
[1746775364491,40.46,165.18,165.08,9.49745675]
[1746775365089,40.46,165.18,165.17,6.0546]
[1746775367389,563.6,165.22,165.21,6.0532]
[1746775368092,563.6,165.22,165.2,6.0534]
[1746775369493,523.14,165.22,165.2,6.0534]
[1746775369694,523.14,165.22,165.21,6.0532]
[1746775369894,40.46,165.24,165.14,1.8862]
[1746775370396,40.46,165.24,165.21,6.0529]
[1746775370696,40.46,165.24,165.14,1.8862]
[1746775371291,321.1807,165.28,165.16,9.49745675]
[1746775371495,40.46,165.27,165.16,9.49745675]
[1746775372892,401.9807,165.28,165.16,9.49745675]
[1746775373093,361.6407,165.28,165.16,9.49745675]
[1746775373797,361.6407,165.28,165.25,6.0514]
[1746775373997,42.5357,165.28,165.25,6.0514]
[1746775374203,40.46,165.28,165.16,9.49745675]
[1746775374492,40.46,165.28,165.26,6.051]
[1746775374889,40.46,165.28,165.16,9.49745675]
[1746775375089,40.46,165.28,165.14,42.1862]
[1746775375303,80.76,165.28,165.14,42.1862]
[1746775375599,80.76,165.28,165.24,6.0517]
[1746775375799,80.76,165.28,165.14,42.1862]
[1746775376002,80.76,165.28,165.16,9.49745675]
[1746775376201,523.26,165.3,165.15,12.1106]
[1746775376399,42.4939,165.32,165.2,9.49745675]
[1746775376601,42.4939,165.32,165.21,5.9661]
[1746775377099,40.44,165.32,165.21,5.9661]
[1746775377300,40.44,165.32,165.31,6.0495]
[1746775377499,40.44,165.32,165.21,5.9661]
[1746775377695,46.4893,165.32,165.21,5.9661]
[1746775378197,6.0497,165.31,165.28,6.0505]
[1746775378394,40.44,165.32,165.28,6.0505]
[1746775378700,40.44,165.32,165.21,5.9661]
[1746775378894,46.4892,165.32,165.28,6.0506]
[1746775379194,46.4892,165.32,165.21,5.9661]
[1746775379499,46.4892,165.32,165.27,6.0507]
[1746775379696,40.44,165.32,165.27,6.0507]
[1746775379899,40.44,165.32,165.28,6.0505]
[1746775380096,40.44,165.32,165.21,5.9661]
[1746775380600,46.4894,165.32,165.21,5.9661]
[1746775380802,40.44,165.32,165.21,5.9661]
[1746775381500,40.44,165.32,165.29,6.0499]
[1746775382391,40.44,165.32,165.3,6.0497]
[1746775382597,40.44,165.32,165.21,5.9661]
[1746775382804,46.4895,165.32,165.21,5.9661]
[1746775383002,46.4895,165.32,165.26,6.0512]
[1746775383206,40.44,165.32,165.21,5.9661]
[1746775383802,46.4892,165.32,165.21,5.9661]
[1746775384203,40.44,165.32,165.21,5.9661]
[1746775384404,40.44,165.32,165.21,1.9901]
[1746775384605,6.0501,165.3,165.21,1.9901]
[1746775384799,40.44,165.32,165.21,1.9901]
[1746775385397,40.44,165.36,165.24,9.49745675]
[1746775385599,40.44,165.36,165.24,49.69745675]
[1746775385902,40.44,165.36,165.25,3.9616]
[1746775386305,523.18,165.38,165.28,9.49745675]
[1746775386504,40.44,165.4,165.32,9.49745675]
[1746775386701,40.44,165.4,165.3,40.2]
[1746775387394,46.4865,165.4,165.3,40.2]
[1746775387595,40.44,165.4,165.3,40.2]
[1746775387798,40.44,165.4,165.25,3.9616]
[1746775388401,40.44,165.4,165.25,9.49745675]
[1746775388704,80.6,165.39,165.25,9.49745675]
[1746775388899,6.0476,165.37,165.23,40.18]
[1746775389204,2.0556,165.36,165.23,40.18]
[1746775390004,6.0484,165.34,165.28,6.0503]
[1746775390201,40.42,165.33,165.23,40.18]
[1746775390794,80.58,165.33,165.22,4.0772]
[1746775391598,80.58,165.33,165.21,1.8814]
[1746775392104,524.9556,165.36,165.21,1.8814]
[1746775392304,40.16,165.35,165.27,9.49745675]
[1746775392502,40.16,165.35,165.25,40.16]
[1746775393406,40.16,165.35,165.31,6.0493]
[1746775393601,40.16,165.35,165.25,40.16]
[1746775394202,40.16,165.35,165.27,9.49745675]
[1746775394409,319.105,165.38,165.27,9.49745675]
[1746775394906,40.16,165.4,165.36,6.0474]
[1746775395207,40.16,165.4,165.31,9.49745675]
[1746775395397,6.0466,165.39,165.31,9.49745675]
[1746775395599,563.08,165.44,165.31,9.49745675]
[1746775395799,563.08,165.44,165.32,3.8919]
[1746775396200,563.08,165.44,165.29,42.2132]
[1746775396804,328.60245675,165.43,165.29,2.0532]
[1746775397012,6.0473,165.38,165.32,6.049]
[1746775397212,40.16,165.37,165.29,2.0532]
[1746775398108,319.105,165.43,165.29,6.047]
[1746775398307,82.2,165.42,165.29,2.0532]
[1746775398812,6.0466,165.39,165.34,6.048]
[1746775399016,82.2,165.42,165.29,2.0532]
[1746775399216,82.2,165.42,165.3,9.49745675]
[1746775399816,88.2455,165.42,165.37,6.0472]
[1746775400012,88.2455,165.42,165.31,9.49745675]
[1746775400013,40.16,165.42,165.31,9.49745675]
[1746775400213,44.0201,165.47,165.31,51.71745675]
[1746775400419,44.0201,165.47,165.44,6.0446]
[1746775400612,44.0201,165.47,165.36,42.02]
[1746775400809,44.0201,165.47,165.36,45.9555]
[1746775401311,42.02,165.47,165.37,2.0746]
[1746775402016,84.24,165.47,165.37,2.0746]
[1746775402217,6.0441,165.46,165.4,6.0459]
[1746775402411,6.0441,165.46,165.37,2.0746]
[1746775402613,84.24,165.47,165.37,2.0746]
[1746775402916,84.22,165.47,165.37,2.0746]
[1746775403315,42.02,165.47,165.42,6.0451]
[1746775403716,42.02,165.47,165.39,9.49745675]
[1746775403917,42.02,165.47,165.46,6.044]
[1746775404407,42.12,165.49,165.48,6.0433]
[1746775404608,43.9286,165.52,165.41,9.49745675]
[1746775404815,42.02,165.52,165.41,9.49745675]
[1746775405219,522.78,165.53,165.42,42.0]
[1746775405417,522.78,165.53,165.45,9.49745675]
[1746775405623,42.0,165.55,165.46,2.0262]
[1746775406522,42.0,165.58,165.46,2.0262]
[1746775406918,1.9853,165.59,165.48,9.49745675]
[1746775407119,42.0,165.67,165.52,9.49745675]
[1746775407323,6.0371,165.65,165.57,6.0399]
[1746775407523,42.0,165.67,165.54,2.0262]
[1746775407923,42.0,165.67,165.58,6.0394]
[1746775408625,6.0374,165.65,165.58,6.0394]
[1746775408821,42.0,165.67,165.55,9.49745675]
[1746775409122,42.0,165.67,165.54,2.0262]
[1746775409626,321.1489,165.68,165.56,9.49745675]
[1746775409822,321.1489,165.68,165.56,15.35992649]
[1746775410127,321.1489,165.68,165.54,2.0262]
[1746775410827,321.1489,165.68,165.57,6.0397]
[1746775411028,336.50882649,165.68,165.54,2.0262]
[1746775411224,320.19290032,165.67,165.54,2.0262]
[1746775411428,319.105,165.67,165.54,6.041]
[1746775411630,1.08796808,165.66,165.53,42.42]
[1746775411928,6.0389,165.61,165.53,42.42]
[1746775412123,84.28,165.62,165.53,42.42]
[1746775412325,90.3185,165.62,165.56,6.0403]
[1746775412524,41.98,165.62,165.53,42.42]
[1746775412719,41.98,165.62,165.53,57.77992649]
[1746775413032,41.98,165.62,165.6,6.0386]
[1746775413230,361.085,165.67,165.54,4.0851]
[1746775413430,409.5414,165.67,165.6,6.0389]
[1746775413631,409.5414,165.67,165.57,15.35992649]
[1746775413933,403.505,165.67,165.57,15.35992649]
[1746775414125,403.505,165.67,165.54,4.0851]
[1746775414324,6.0371,165.65,165.54,4.0851]
[1746775414621,403.505,165.67,165.54,4.0851]
[1746775414928,6.0381,165.63,165.58,6.0396]
[1746775415122,403.505,165.67,165.54,4.0851]
[1746775415328,319.105,165.66,165.52,57.35992649]
[1746775415530,319.105,165.65,165.52,57.35992649]
[1746775415934,6.039,165.6,165.54,6.041]
[1746775416229,41.98,165.6,165.52,57.35992649]
[1746775416734,84.14,165.64,165.52,42.0]
[1746775416935,6.0386,165.61,165.55,6.0407]
[1746775417134,84.14,165.64,165.52,42.0]
[1746775417635,84.14,165.64,165.49,537.75992649]
[1746775418029,41.98,165.64,165.49,537.75992649]
[1746775418232,42.18,165.63,165.53,15.35992649]
[1746775418431,41.98,165.64,165.54,1.9268]
[1746775418635,41.98,165.64,165.61,6.0382]
[1746775418835,41.98,165.64,165.56,15.35992649]
[1746775419035,41.98,165.64,165.63,6.0378]
[1746775419537,2.0439,165.68,165.56,15.35992649]
[1746775420235,2.0439,165.68,165.54,48.2912]
[1746775420841,6.0381,165.63,165.54,44.1868]
[1746775421039,41.96,165.63,165.54,44.1868]
[1746775421443,41.96,165.63,165.48,84.14]
[1746775421635,319.105,165.67,165.5,17.30542649]
[1746775421831,361.065,165.67,165.54,15.35992649]
[1746775422035,6.0368,165.66,165.61,6.0385]
[1746775422236,361.065,165.67,165.54,15.35992649]
[1746775422433,361.065,165.67,165.59,6.039]
[1746775422944,6.0376,165.64,165.59,6.039]
[1746775423144,361.065,165.67,165.57,6.0397]
[1746775423341,361.065,165.67,165.5,17.30542649]
[1746775423841,6.0381,165.63,165.57,6.0397]
[1746775424044,42.1,165.62,165.5,17.30542649]
[1746775424242,41.96,165.61,165.5,59.40542649]
[1746775424749,47.9986,165.61,165.56,6.0403]
[1746775425149,41.96,165.61,165.5,59.40542649]
[1746775426046,47.9988,165.61,165.5,17.30542649]
[1746775426449,41.96,165.61,165.56,6.0401]
[1746775426750,41.96,165.61,165.5,1.9455]
[1746775427749,41.96,165.61,165.58,6.0394]
[1746775428050,41.96,165.62,165.53,15.35992649]
[1746775428351,319.105,165.67,165.53,56.99992649]
[1746775428552,41.64,165.66,165.54,4.0613]
[1746775428759,41.64,165.66,165.63,6.0375]
[1746775429451,41.64,165.66,165.54,45.7013]
[1746775429951,6.0375,165.64,165.59,6.0392]
[1746775430150,41.64,165.66,165.54,45.7013]
[1746775430346,41.64,165.66,165.54,4.0613]
[1746775430552,41.64,165.66,165.53,41.64]
[1746775430849,41.64,165.66,165.52,15.35992649]
[1746775430850,319.105,165.65,165.52,15.35992649]
[1746775431051,319.105,165.65,165.55,6.0405]
[1746775431454,6.0389,165.61,165.56,6.0403]
[1746775431748,41.62,165.6,165.5,1.9455]
[1746775431953,43.6451,165.6,165.5,1.9455]
[1746775433351,43.6451,165.6,165.56,6.0402]
[1746775433753,41.62,165.6,165.52,15.35992649]
[1746775434252,41.62,165.6,165.59,6.0393]
[1746775434450,43.2147,165.64,165.53,1.9043]
[1746775434652,43.2147,165.64,165.6,6.0388]
[1746775434846,43.2147,165.64,165.53,1.9043]
[1746775435248,6.0393,165.6,165.5,1.9455]
[1746775435553,43.2147,165.64,165.5,1.9455]
[1746775435755,6.0392,165.6,165.5,17.30542649]
[1746775436055,41.62,165.59,165.5,17.30542649]
[1746775436551,41.62,165.59,165.5,1.9455]
[1746775437648,41.62,165.62,165.5,1.9455]
[1746775437849,41.62,165.62,165.52,9.45692032]
[1746775438454,47.6582,165.62,165.59,6.0391]
[1746775438657,41.62,165.62,165.51,9.45692032]
[1746775439653,41.62,165.62,165.5,1.9455]
[1746775440157,6.0395,165.59,165.55,6.0406]
[1746775440758,41.62,165.62,165.56,6.0403]
[1746775441053,41.62,165.62,165.5,1.9455]
[1746775441252,41.62,165.62,165.57,1.0]
[1746775441757,6.0389,165.6,165.57,1.0]
[1746775442559,41.62,165.62,165.57,1.0]
[1746775443058,6.0389,165.6,165.57,1.0]
[1746775443461,41.62,165.62,165.57,1.0]
[1746775443962,82.62,165.62,165.57,1.0]
[1746775444261,41.62,165.62,165.57,1.0]
[1746775446570,41.62,165.62,165.61,6.0385]
[1746775446864,41.62,165.62,165.57,1.0]
[1746775447165,41.62,165.62,165.6,6.0386]
[1746775447660,41.62,165.62,165.61,6.0385]
[1746775447861,41.62,165.62,165.57,1.0]
[1746775448264,41.62,165.62,165.6,6.0389]
[1746775448658,41.62,165.62,165.57,1.0]
[1746775448859,41.62,165.62,165.6,6.0388]
[1746775449070,41.62,165.62,165.57,1.0]
[1746775450561,41.62,165.62,165.59,6.039]
[1746775450771,41.62,165.62,165.57,1.0]
[1746775451168,47.6583,165.62,165.58,6.0396]
[1746775451662,47.6583,165.62,165.57,7.0399]
[1746775451967,47.6583,165.62,165.57,1.0]
[1746775452268,6.0386,165.61,165.57,1.0]
[1746775452866,41.62,165.62,165.57,7.0397]
[1746775453371,41.62,165.62,165.57,1.0]
[1746775453562,841.065,165.61,165.57,1.0]
[1746775453765,841.065,165.61,165.46,2.0407]
[1746775454074,841.065,165.61,165.5,6.0422]
[1746775454075,319.105,165.6,165.5,6.0422]
[1746775454669,320.19335637,165.59,165.43,1.8871]
[1746775454974,41.38835637,165.58,165.43,1.8871]
[1746775455164,6.0419,165.52,165.43,1.8871]
[1746775455461,80.52,165.51,165.41,1.979]
[1746775455667,80.54,165.5,165.41,1.979]
[1746775455873,40.24,165.49,165.41,1.979]
[1746775456474,40.24,165.49,165.44,6.0446]
[1746775457464,40.24,165.49,165.39,2.0641]
[1746775458072,40.24,165.49,165.37,49.69692032]
[1746775458373,40.24,165.49,165.47,6.0436]
[1746775458768,1.6872,165.57,165.43,9.45692032]
[1746775458966,81.08,165.56,165.43,9.45692032]
[1746775459172,40.26,165.55,165.43,9.45692032]
[1746775459363,40.26,165.55,165.44,3.9926]
[1746775460073,40.26,165.55,165.52,6.0415]
[1746775460574,40.26,165.55,165.44,3.9926]
[1746775460763,40.26,165.55,165.45,1.9028]
[1746775461168,40.26,165.55,165.51,6.0419]
[1746775461364,40.26,165.55,165.45,1.9028]
[1746775461570,40.26,165.56,165.47,9.45692032]
[1746775461872,40.26,165.56,165.47,50.01692032]
[1746775462272,40.26,165.56,165.55,6.0404]
[1746775462978,40.26,165.56,165.47,40.56]
[1746775463171,40.26,165.56,165.49,9.45692032]
[1746775463677,40.26,165.56,165.55,6.0407]
[1746775464375,40.26,165.6,165.58,6.0395]
[1746775464869,40.26,165.6,165.53,9.45692032]
[1746775465678,40.26,165.6,165.59,6.0393]
[1746775466477,40.26,165.6,165.58,6.0395]
[1746775466975,40.26,165.6,165.54,1.9265]
[1746775467175,40.26,165.6,165.59,6.0393]
[1746775467371,319.105,165.64,165.54,3.9355]
[1746775467576,40.26,165.64,165.57,9.45692032]
[1746775468779,40.26,165.64,165.63,6.0378]
[1746775469087,40.26,165.68,165.57,9.45692032]
[1746775469584,40.26,165.68,165.61,9.45692032]
[1746775469794,40.26,165.68,165.67,6.0363]
[1746775469989,40.26,165.68,165.62,1.9139]
[1746775470186,40.26,165.68,165.62,5.8602]
[1746775470490,40.26,165.72,165.62,5.8602]
[1746775471483,46.2945,165.72,165.67,6.0363]
[1746775471786,40.26,165.72,165.67,6.0363]
[1746775472185,46.2946,165.72,165.67,6.0363]
[1746775472588,40.26,165.72,165.62,5.8602]
[1746775473288,40.26,165.72,165.71,6.0349]
[1746775473590,40.26,165.72,165.64,9.45692032]
[1746775474195,40.26,165.72,165.62,5.8602]
[1746775474699,40.26,165.72,165.68,6.0356]
[1746775474999,40.26,165.72,165.62,5.8602]
[1746775475297,40.26,165.72,165.68,6.0358]
[1746775475497,40.24,165.76,165.67,9.45692032]
[1746775475701,319.105,165.77,165.67,9.45692032]
[1746775476697,319.105,165.77,165.68,9.45692032]
[1746775476895,319.105,165.77,165.65,9.45692032]
[1746775477194,6.0335,165.75,165.65,9.45692032]
[1746775477395,40.22,165.74,165.64,40.88]
[1746775477599,46.2539,165.74,165.64,40.88]
[1746775477784,40.22,165.74,165.64,40.88]
[1746775479292,40.22,165.74,165.65,9.45692032]
[1746775479692,40.22,165.74,165.65,15.34442118]
[1746775480097,40.22,165.74,165.71,6.0347]
[1746775480393,40.22,165.74,165.65,15.34442118]
[1746775480694,40.22,165.74,165.71,6.0348]
[1746775481494,40.22,165.74,165.72,6.0344]
[1746775482096,40.22,165.74,165.65,15.34442118]
[1746775482394,74.44185,165.76,165.65,15.34442118]
[1746775482596,40.46,165.76,165.65,15.34442118]
[1746775483897,40.46,165.76,165.74,6.0335]
[1746775484097,40.46,165.76,165.65,15.34442118]
[1746775484300,40.46,165.76,165.69,15.34442118]
[1746775484592,40.46,165.76,165.7,2.0114]
[1746775484997,46.4931,165.76,165.72,6.0343]
[1746775485199,40.46,165.76,165.65,15.34442118]
[1746775485589,6.0337,165.75,165.7,6.035]
[1746775485895,6.0337,165.75,165.65,15.34442118]
[1746775486094,46.4932,165.76,165.7,6.035]
[1746775486299,40.46,165.76,165.7,6.035]
[1746775486493,40.46,165.76,165.65,15.34442118]
[1746775486698,6.0337,165.75,165.63,42.3114]
[1746775486999,40.46,165.76,165.63,42.3114]
[1746775487393,40.46,165.76,165.64,40.2]
[1746775487701,46.4931,165.76,165.71,6.0346]
[1746775487898,40.46,165.76,165.64,40.2]
[1746775488200,46.4931,165.76,165.71,6.0346]
[1746775488500,40.46,165.76,165.64,40.2]
[1746775488695,40.46,165.76,165.68,6.0356]
[1746775488895,40.46,165.76,165.63,2.0114]
[1746775489094,562.04,165.76,165.63,2.0114]
[1746775489389,562.04,165.76,165.62,2.0615]
[1746775489593,562.04,165.76,165.6,15.34442118]
[1746775489789,1.08734979,165.75,165.6,15.34442118]
[1746775489994,40.24,165.74,165.6,15.34442118]
[1746775490199,320.19234979,165.73,165.58,2.001]
[1746775490400,6.0363,165.68,165.62,6.0379]
[1746775490598,80.74,165.67,165.62,6.0379]
[1746775490795,80.74,165.67,165.56,3.9557]
[1746775491100,6.0376,165.64,165.59,6.0389]
[1746775491392,80.74,165.67,165.55,0.23315]
[1746775491600,7.7187,165.63,165.55,0.23315]
[1746775492300,1.6808,165.63,165.59,6.0392]
[1746775492599,1.6808,165.63,165.6,6.0388]
[1746775493902,1.6808,165.63,165.55,0.23315]
[1746775494797,41.9008,165.63,165.55,0.23315]
[1746775495001,41.9008,165.63,165.59,6.039]
[1746775495200,41.9008,165.63,165.55,0.23315]
[1746775495595,41.9008,165.63,165.6,6.0388]
[1746775496101,41.9008,165.63,165.55,0.23315]
[1746775496599,41.9008,165.63,165.59,6.039]
[1746775496798,41.9008,165.63,165.55,0.23315]
[1746775497098,41.9008,165.63,165.58,6.0394]
[1746775497402,41.9008,165.63,165.55,0.23315]
[1746775498102,319.105,165.62,165.55,0.23315]
[1746775498296,359.565,165.61,165.55,0.23315]
[1746775498697,359.565,165.61,165.45,1.915]
[1746775498899,6.0406,165.56,165.45,3.8996]
[1746775499205,40.46,165.55,165.51,6.0422]
[1746775499407,40.46,165.55,165.45,1.9846]
[1746775499599,40.46,165.55,165.4,15.34442118]
[1746775499793,40.46,165.55,165.39,40.22]
[1746775499999,6.0414,165.54,165.39,40.22]
[1746775500293,40.46,165.55,165.39,40.22]
[1746775501400,40.46,165.55,165.5,6.0423]
[1746775501601,46.5007,165.55,165.5,6.0423]
[1746775501800,521.8,165.56,165.52,6.0417]
[1746775501997,80.7,165.55,165.52,6.0417]
[1746775502202,80.7,165.55,165.41,9.46976278]
[1746775502803,399.805,165.55,165.38,86.6889]
[1746775503101,399.805,165.55,165.38,46.2089]
[1746775503606,319.105,165.54,165.47,1.0]
[1746775503906,319.105,165.53,165.47,1.0]
[1746775504308,80.7,165.52,165.47,1.0]
[1746775504501,40.22,165.52,165.47,1.0]
[1746775504803,40.48,165.53,165.47,1.0]
[1746775505505,40.48,165.53,165.49,6.0428]
[1746775506101,46.5215,165.53,165.49,6.0428]
[1746775506810,40.48,165.53,165.49,6.0428]
[1746775507003,40.48,165.53,165.48,6.0432]
[1746775507496,40.48,165.53,165.47,1.0]
[1746775507497,359.585,165.53,165.47,1.0]
[1746775508208,319.105,165.52,165.38,4.0683]
[1746775508412,15.39490602,165.51,165.35,15.39490602]
[1746775508611,6.044,165.46,165.35,15.39490602]
[1746775508909,80.72,165.45,165.32,40.24]
[1746775509111,80.72,165.44,165.41,6.0456]
[1746775509306,40.48,165.43,165.41,6.0456]
[1746775509705,40.48,165.43,165.4,6.0461]
[1746775509907,40.48,165.43,165.32,15.39490602]
[1746775510209,40.48,165.43,165.41,6.0456]
[1746775511012,40.48,165.43,165.4,6.0461]
[1746775511613,40.48,165.43,165.39,6.0465]
[1746775511906,40.48,165.43,165.31,5.9901]
[1746775512208,6.0455,165.42,165.31,5.9901]
[1746775512802,40.48,165.43,165.31,5.9901]
[1746775513412,40.9353,165.43,165.31,5.9901]
[1746775513707,56.33020602,165.43,165.27,15.39490602]
[1746775514115,6.047,165.38,165.27,15.39490602]
[1746775514406,80.48,165.37,165.26,3.8632]
[1746775514609,40.24,165.36,165.26,3.8632]
[1746775515808,40.24,165.36,165.2,75.94121276]
[1746775516011,881.825,165.36,165.22,3.98]
[1746775516205,6.0481,165.35,165.29,6.0499]
[1746775516412,6.0481,165.35,165.22,3.98]
[1746775516610,881.825,165.36,165.22,3.98]
[1746775516808,334.49990602,165.35,165.14,1.0]
[1746775517012,15.39490602,165.32,165.14,1.0]
[1746775517309,15.39490602,165.3,165.17,6.0543]
[1746775517516,359.345,165.29,165.14,1.0]
[1746775517813,6.0518,165.25,165.14,1.0]
[1746775518008,40.24,165.24,165.14,1.0]
[1746775518213,40.24,165.23,165.14,1.0]
[1746775518415,40.24,165.23,165.16,6.0547]
[1746775518605,40.24,165.23,165.14,1.0]
[1746775519018,40.24,165.23,165.17,6.0545]
[1746775519413,40.24,165.23,165.14,1.0]
[1746775519616,40.24,165.23,165.16,6.0547]
[1746775519917,40.24,165.23,165.14,1.0]
[1746775520218,40.24,165.23,165.17,6.0545]
[1746775520418,40.24,165.23,165.14,1.0]
[1746775520617,80.52,165.22,165.14,1.0]
[1746775521619,40.26,165.21,165.14,1.0]
[1746775521920,40.26,165.21,165.18,6.0542]
[1746775522214,40.26,165.21,165.14,1.0]
[1746775522519,6.0538,165.2,165.14,7.0554]
[1746775522922,46.3132,165.21,165.15,6.0552]
[1746775523321,40.26,165.21,165.14,1.0]
[1746775524724,40.26,165.2,165.14,1.0]
[1746775526227,46.3139,165.2,165.14,7.0554]
[1746775526419,40.26,165.2,165.14,7.0554]
[1746775527424,46.3138,165.2,165.14,7.0554]